Cogmind - Beta 12 @@@ ROGUE MODE // 2023.04.06 @ 20:05:34 Player: deepledi Result: Self-destructed Performance ------------- Evolutions (4) 2000 Regions Visited (5) 1000 Robots Destroyed (135) 675 Value Destroyed (4602) 4602 Prototype IDs (5) 100 Alien Tech Used (0) 0 Bonus (442) 442 TOTAL SCORE: 8819 Bonus ------- High Alert Combat Kills 442 Cogmind --------- Core Integrity 831/850 Matter 22/300 Energy 200/200 System Corruption 0% Temperature Cool (0) Movement Treading (560) Ox5 Location -6/Factory Parts ------- > --- POWER (2) -------- Micro Nuclear Core Light Angular Momentum Engine > --- PROPULSION (4) --- Light Treads Armored Huge Wheel > --- UTILITY (7) ------ Improved Heat Sink Improved Heat Sink High-capacity Storage Unit Improved Transmission Jammer Hardened Medium Armor Plating Medium Reactive Plating Powered Armor > --- WEAPON (2) ------- Heavy Assault Cannon > --- INVENTORY (20) --- Light Deuterium Engine Light Deuterium Engine Machine Analyzer Weapon Cycler Hardened Medium Armor Plating Hardened Medium Armor Plating Hardened Medium Armor Plating Hardened Medium Armor Plating Improved Medium Armor Plating Medium Reactive Plating Medium Reactive Plating Medium Reactive Plating Dynamic Insulation System Heavy Rocket Launcher Precision Grenade Launcher Precision Grenade Launcher Peak State ------------ > --- POWER ------------ Micro Nuclear Core Light Angular Momentum Engine > --- PROPULSION ------- Light Treads Armored Huge Wheel > --- UTILITY ---------- Improved Heat Sink Improved Heat Sink High-capacity Storage Unit Improved Transmission Jammer Hardened Medium Armor Plating Medium Reactive Plating Powered Armor > --- WEAPON ----------- Heavy Assault Cannon > --- INVENTORY -------- Light Deuterium Engine Light Deuterium Engine Improved Heat Sink Machine Analyzer Weapon Cycler Hardened Medium Armor Plating Hardened Medium Armor Plating Hardened Medium Armor Plating Hardened Medium Armor Plating Improved Medium Armor Plating Medium Reactive Plating Medium Reactive Plating Medium Reactive Plating Dynamic Insulation System Heavy Rocket Launcher Precision Grenade Launcher Precision Grenade Launcher [Rating: 54] Favorites ----------- Power Light Nuclear Core Engine Deuterium Engine Power Core Light Nuclear Core Propulsion Light Treads Treads Light Treads Leg Aluminum Leg Wheel Wheel Hover Unit Aerolev Unit Utility High-capacity Storage Unit Device Improved Heat Sink Storage High-capacity Storage Unit Processor Improved Signal Interpreter Protection Medium Armor Plating Weapon Improved Light Cannon Energy Gun Field Laser Energy Cannon Improved EM Pulse Cannon Ballistic Gun Gauss Rifle Ballistic Cannon Improved Light Cannon Build | -11 -10 -9 -8 -7 -6 ------- Run | Jun Mat Mat Mat Fac Fac Slots Evolved 8 | . . 2 2 2 2 Power 1 | . . . . 1 . Propulsion 2 | . . . 2 . . Utility 5 | . . 2 . 1 2 Weapon . | . . . . . . Parts Attached 154 | 9 9 13 40 78 5 Power 20 | 1 . 2 5 11 1 Engine 10 | 1 . 2 2 4 1 Core 10 | . . . 3 7 . Reactor . | . . . . . . Propulsion 39 | 4 2 2 10 21 . Treads 24 | . 2 2 6 14 . Leg 4 | 2 . . . 2 . Wheel 7 | 2 . . . 5 . Hover 4 | . . . 4 . . Flight . | . . . . . . Utility 56 | 2 5 6 10 29 4 Device 21 | 1 2 2 2 12 2 Storage 3 | 1 2 . . . . Processor 3 | . . 2 1 . . Hackware . | . . . . . . Protection 29 | . 1 2 7 17 2 Artifact . | . . . . . . Weapon 39 | 2 2 3 15 17 . Energy Gun 11 | 1 . 1 2 7 . Energy Cannon 12 | . . . 9 3 . Ballistic Gun 6 | 1 . . 1 4 . Ballistic Cannon 10 | . 2 2 3 3 . Launcher . | . . . . . . Special Weapon . | . . . . . . Impact Weapon . | . . . . . . Slashing Weapon . | . . . . . . Piercing Weapon . | . . . . . . Special Melee Weapon . | . . . . . . Unidentified Prototypes 5 | . . 1 4 . . Corrupted Parts 1 | . . . 1 . . System Corruption 2 | . . . 2 . . Parts Lost 69 | . . 5 25 38 1 Power 13 | . . 1 4 8 . Propulsion 19 | . . 1 8 10 . Utility 20 | . . 2 7 10 1 Weapon 17 | . . 1 6 10 . Highest Loss Streak 15 | . . 3 15 10 1 To Critical Strikes 3 | . . . . 3 . Average Slot Usage (%) 91 | . 99 95 88 89 79 Engine 7 | . 14 10 4 6 6 Core 4 | . . . 3 7 6 Treads 22 | . 26 22 26 19 6 Wheel 2 | . . . . 5 6 Device 8 | . 9 2 6 11 19 Storage 8 | . 14 11 9 7 6 Processor 6 | . . 16 10 4 . Protection 11 | . 4 10 9 13 20 Energy Gun 2 | . 8 . . 2 . Energy Cannon 4 | . . . 9 3 . Ballistic Gun 2 | . 9 . . 2 . Ballistic Cannon 7 | . 9 21 7 2 6 Naked Turns . | . . . . . . Heaviest Build 108 | 13 58 63 71 95 108 Greatest Support 112 | 32 40 40 82 112 28 Greatest Overweight (x) 19 | . 1 1 19 8 3 Average Overweight (x) . | . . 1 . . 3 Largest Inventory Capacity 20 | 8 20 20 20 20 20 Average Capacity 19 | 7 18 20 20 20 20 Most Carried 20 | 6 20 20 20 20 17 Average Carried 17 | 5 12 18 18 17 16 Final Capacity 20 | 8 20 20 20 20 20 Final Carried 18 | 6 18 16 18 18 16 Class Distribution -------------------- 62% | Mutant 37% | Scavenger-Mutant Dominant Class ---------------- Mutant | -10/Materials Mutant | -9/Materials Mutant | -8/Materials Scavenger-Mutant | -7/Factory Scavenger-Mutant | -6/Factory Resources | -11 -10 -9 -8 -7 -6 ----------- Run | Jun Mat Mat Mat Fac Fac Matter Collected 3077 | 295 264 371 871 1220 56 Remotely . | . . . . . . Salvage Created 4962 | 40 283 488 1684 2139 328 Parts 280 | 7 21 32 89 121 10 Haulers Intercepted 6 | . 1 2 3 . . Recyclers Shooed 6 | 1 3 1 . 1 . Parts Field Recycled . | . . . . . . Retrieved Matter . | . . . . . . Parts Self-Destructed . | . . . . . . Prevented . | . . . . . . Kills | -11 -10 -9 -8 -7 -6 ------- Run | Jun Mat Mat Mat Fac Fac Combat Hostiles Destroyed 103 | . 10 12 32 46 3 Guns 25 | . 2 . 2 21 . Cannons 71 | . 8 12 27 21 3 AOE 4 | . . . 2 2 . Classes Destroyed 17 | 1 4 3 6 3 . Worker 3 | . . . . 3 . Builder 4 | . . . 1 2 1 Tunneler 3 | 2 . . . 1 . Hauler 6 | . 1 2 3 . . Recycler 3 | . . 1 . . 2 Mechanic 2 | . . . 1 1 . Operator 1 | . . . 1 . . Watcher 10 | . 2 1 4 3 . Swarmer 30 | . 6 . 6 18 . Grunt 34 | . 4 6 12 10 2 Brawler 4 | . . 1 1 2 . Duelist 3 | . . . 2 . 1 Sentry 18 | . . 5 6 7 . Specialist 4 | . . . 4 . . Hunter 3 | . . . . 3 . Programmer 5 | . . . . 5 . Heavy 2 | . . . 1 1 . Best Kill Streak 8 | 2 5 3 8 5 3 Combat Bots Only 6 | . 3 3 6 4 3 Max Kills in Single Turn 2 | 1 1 1 2 2 1 Gunslinging . | . . . . . . Exploded 1 | . . . 1 1 . Melee . | . . . . . . Uniques/NPCs Destroyed . | . . . . . . Combat | -11 -10 -9 -8 -7 -6 -------- Run | Jun Mat Mat Mat Fac Fac Damage Taken 11353 | . 373 902 3543 6042 493 Core 1289 | . 39 86 518 627 19 Absorbed by Shields . | . . . . . . Core Remaining (%) 55 | 100 84 78 5 10 . Volleys Fired 439 | 4 34 48 110 219 24 Largest 2 | 2 2 2 2 2 1 Hottest 149 | 60 78 78 138 149 60 Shots Fired 742 | 6 68 95 199 350 24 Gun 233 | 6 26 . 16 185 . Cannon 509 | . 42 95 183 165 24 Launcher . | . . . . . . Special . | . . . . . . Kinetic 398 | 4 55 95 104 116 24 Thermal 196 | . . . 5 191 . Explosive . | . . . . . . Electromagnetic 148 | 2 13 . 90 43 . Robot Hit Streak 24 | 2 5 7 9 24 3 Robot Miss Streak 7 | 2 3 7 5 4 3 Penetration Max 1 | . . . . 1 1 Secondary Targets 2 | . . . . 2 . Max Gunslinging Chain 1 | . . . . 1 . Shots Hit Robots 469 | 2 42 49 116 246 14 Core Hits 198 | 2 17 18 53 102 6 Critical Kills 2 | . . . . 2 . Critical Parts Destroyed 1 | . . . . 1 . Critical Strikes 18 | . 2 3 3 8 2 Burn 1 | . . . . 1 . Meltdown 2 | . . . . 2 . Destroy 1 | . . . . 1 . Blast 12 | . 1 3 3 3 2 Corrupt 2 | . 1 . . 1 . Melee Attacks . | . . . . . . Impact . | . . . . . . Slashing . | . . . . . . Piercing . | . . . . . . Sneak Attacks . | . . . . . . Combat Hostiles . | . . . . . . Follow-up Attacks . | . . . . . . Damage Inflicted 11903 | 28 755 1041 3327 5817 935 Guns 2925 | 28 226 . 253 2418 . Cannons 8352 | . 528 1037 2720 3132 935 Explosions 578 | . . . 334 244 . Melee . | . . . . . . Ramming 48 | . 1 4 20 23 . Kinetic 5983 | 13 634 1037 1441 1923 935 Thermal 3755 | . . . 409 3346 . Explosive . | . . . . . . Electromagnetic 2117 | 15 120 . 1457 525 . Impact . | . . . . . . Slashing . | . . . . . . Piercing . | . . . . . . Highest Corruption 16 | . . . 2 16 . Average Corruption 9 | . . . 2 9 . Corruption Purged 5 | . . . . 5 . Corruption Blocked . | . . . . . . Effects 84 | . . . . 84 . Message Errors 17 | . . . . 17 . Matter Fused 15 | . . . . 15 . Heat Flow Errors 13 | . . . . 13 . Energy Discharges 11 | . . . . 11 . Parts Rejected 2 | . . . . 2 . Parts Fused 1 | . . . . 1 . Data Loss (minor) 9 | . . . . 9 . Data Loss (major) 4 | . . . . 4 . Misfires 1 | . . . . 1 . Alerts 6 | . . . . 6 . Weapon Failures 5 | . . . . 5 . Overload Shots . | . . . . . . Overflow Damage 232 | . 2 22 64 64 80 Projectiles 186 | . 2 22 51 31 80 Explosions 46 | . . . 13 33 . Melee . | . . . . . . Knockbacks 13 | . 1 1 9 1 1 Impact . | . . . . . . Kinetic 13 | . 1 1 9 1 1 Secondary . | . . . . . . Self-Inflicted Damage 181 | . . . 104 77 . Shots 5 | . . . 3 2 . Rammed 6 | . 1 1 1 3 . Targets Rammed 6 | . 1 1 1 3 . Kicked . | . . . . . . Crushed . | . . . . . . Highest Temperature 438 | . 270 282 387 438 90 Average Temperature 103 | . 98 74 87 130 38 Received Heat Transfer 3138 | . 108 354 1332 1176 168 Effects 12 | . . . 3 9 . Shutdowns 4 | . . . . 4 . Energy Bleed 3 | . . . 2 1 . Interference 4 | . . . . 4 . Damage (minor) 1 | . . . 1 . . Siege Activations . | . . . . . . Robots Corrupted 1 | . . . 1 . . Combat Hostiles 1 | . . . 1 . . Parts Fried 12 | . . . 9 3 . Impact Corruptions . | . . . . . . Robots Melted 2 | . . . . 2 . Combat Hostiles 2 | . . . . 2 . Parts Melted 15 | . . . . 15 . Heat Transferred 6806 | . . . 561 6245 . Parts Sabotaged . | . . . . . . Parts Stolen . | . . . . . . Parts Stripped . | . . . . . . Power Chain Reactions 7 | . . . 5 2 . Missiles Intercepted . | . . . . . . Alert | -11 -10 -9 -8 -7 -6 ------- Run | Jun Mat Mat Mat Fac Fac Peak Influence 1070 | 10 176 185 372 1070 674 Initial 519 | . 6 67 70 151 519 Average 289 | 4 51 101 211 432 574 Maximum Alert Level 3 | . . . 1 3 2 Low Security (%) 48 | 100 100 100 47 24 . Level 1 22 | . . . 52 18 . Level 2 20 | . . . . 39 100 Level 3 8 | . . . . 18 . Level 4 . | . . . . . . Level 5 . | . . . . . . High Security . | . . . . . . Max Security . | . . . . . . Squads Dispatched 21 | . 1 2 5 12 1 Investigation 2 | . . 1 . 1 . Extermination 5 | . . . . 5 . Reinforcement 10 | . 1 1 4 3 1 Assault 3 | . . . . 3 . Garrison 1 | . . . 1 . . Intercept . | . . . . . . Searches Triggered . | . . . . . . Construction Impeded . | . . . . . . Haulers Reinforced 2 | . . . . 2 . Active Scanning Responses . | . . . . . . Cargo Convoy Interrupts . | . . . . . . Stealth | -11 -10 -9 -8 -7 -6 --------- Run | Jun Mat Mat Mat Fac Fac Distress Signals 9 | . 2 1 4 . 2 Communications Jammed 15 | . . . . 15 . Distress Signals 9 | . . . . 9 . Times Spotted 167 | . 16 18 47 77 9 Peak Tracking Total 6 | . 4 4 6 5 5 Tactical Retreats 10 | . 1 1 1 6 1 Traps | -11 -10 -9 -8 -7 -6 ------- Run | Jun Mat Mat Mat Fac Fac Traps Triggered 9 | . . 1 2 6 . Indirectly . | . . . . . . Trap Hack Attempts . | . . . . . . Triggered . | . . . . . . Disarmed . | . . . . . . Reprogrammed . | . . . . . . Reused . | . . . . . . Traps Extracted . | . . . . . . Installed . | . . . . . . Triggered . | . . . . . . Machines | -11 -10 -9 -8 -7 -6 ---------- Run | Jun Mat Mat Mat Fac Fac Machines Disabled 10 | . . 1 2 7 . Max in Single Turn 2 | . . 1 1 2 . Garrison Access 3 | . . . 1 2 . Machines Repaired . | . . . . . . Machines Sabotaged . | . . . . . . Overloaded Fab Kills . | . . . . . . Hacking | -11 -10 -9 -8 -7 -6 --------- Run | Jun Mat Mat Mat Fac Fac Machines Accessed 12 | . 3 2 2 5 . Terminals 7 | . 3 2 1 1 . Fabricators 1 | . . . . 1 . Repair Stations . | . . . . . . Recycling Units . | . . . . . . Scanalyzers . | . . . . . . Garrison Access 4 | . . . 1 3 . Total Hacks 24 | . 7 5 3 9 . Successful 9 | . 2 2 2 3 . Failed 15 | . 5 3 1 6 . Catastrophic 1 | . . . . 1 . Database Lockouts . | . . . . . . Manual 14 | . 7 5 2 . . Terminals 16 | . 7 5 2 2 . Fabricators 1 | . . . . 1 . Repair Stations . | . . . . . . Recycling Units . | . . . . . . Scanalyzers . | . . . . . . Garrison Access 7 | . . . 1 6 . Terminal Hacks . | . . . . . . Fabricator Hacks 1 | . . . . 1 . Network Status 1 | . . . . 1 . Repair Station Hacks . | . . . . . . Recycling Unit Hacks . | . . . . . . Scanalyzer . | . . . . . . Garrison Access Hacks 3 | . . . 1 2 . Seal Access 3 | . . . 1 2 . Unauthorized Hacks 5 | . 2 2 1 . . Terminals 5 | . 2 2 1 . . Botnet 5 | . 2 2 1 . . Fabricators . | . . . . . . Repair Stations . | . . . . . . Recycling Units . | . . . . . . Scanalyzers . | . . . . . . Garrison Access . | . . . . . . Data Cores Recovered . | . . . . . . Used . | . . . . . . Hacking Detections 4 | . 2 . . 2 . Full Trace Events . | . . . . . . Feedback Events . | . . . . . . Feedback Blocked . | . . . . . . Robot Schematics Acquired . | . . . . . . Robots Built . | . . . . . . Authchips . | . . . . . . Time . | . . . . . . Total Robot Build Rating . | . . . . . . Part Schematics Acquired . | . . . . . . Parts Built . | . . . . . . Authchips . | . . . . . . Time . | . . . . . . Total Part Build Rating . | . . . . . . Parts Repaired . | . . . . . . Time . | . . . . . . Parts Recycled . | . . . . . . Recycled Matter . | . . . . . . Retrieved Matter . | . . . . . . Retrieved Components . | . . . . . . Parts Scanalyzed . | . . . . . . Part Schematics Acquired . | . . . . . . Parts Damaged . | . . . . . . Bothacking | -11 -10 -9 -8 -7 -6 ------------ Run | Jun Mat Mat Mat Fac Fac Used RIF Installer . | . . . . . . Robots Hacked . | . . . . . . Non-combat . | . . . . . . Combat . | . . . . . . Robot Hacks Applied . | . . . . . . Relay Couplers Released . | . . . . . . Fabnet Peak Effective % . | . . . . . . Robots Rewired . | . . . . . . Allies Hacked . | . . . . . . Hacks Repelled . | . . . . . . Allies | -11 -10 -9 -8 -7 -6 -------- Run | Jun Mat Mat Mat Fac Fac Total Allies . | . . . . . . Largest Group . | . . . . . . Highest-Rated Group . | . . . . . . Highest-Rated Ally . | . . . . . . Total Orders . | . . . . . . Ally Attacks . | . . . . . . Total Damage . | . . . . . . Kills . | . . . . . . Allies Corrupted . | . . . . . . Allies Melted . | . . . . . . Intel | -11 -10 -9 -8 -7 -6 ------- Run | Jun Mat Mat Mat Fac Fac Robot Analysis Total . | . . . . . . Derelict Logs Recovered . | . . . . . . Drone Launches . | . . . . . . Drone Recoveries . | . . . . . . Exploration | -11 -10 -9 -8 -7 -6 ------------- Run | Jun Mat Mat Mat Fac Fac Turns Passed 9246 | 128 1002 1160 2369 4427 160 Spaces Moved 4301 | 104 393 397 1042 2301 64 Core 34 | 33 . . 1 . . Treads 3155 | . 355 397 990 1413 . Legs 117 | 50 38 . . 29 . Wheels 944 | 21 . . . 859 64 Hover 51 | . . . 51 . . Flight . | . . . . . . Fastest Speed 50 | 50 120 240 155 101 145 Average Speed 173 | 93 215 240 183 154 145 Slowest Speed 1000 | 120 240 240 1000 400 145 Overloaded Moves . | . . . . . . Propulsion Burnouts . | . . . . . . Robots Hopped . | . . . . . . Cave-ins Triggered . | . . . . . . Exploration Rate (%) 40 | 6 58 43 72 59 3 Regions Visited 5 Branch Regions . Pre-discovered Areas . | . . . . . . Known Exits Taken 3 | . . 1 1 1 . Unknown Exits Taken 2 | 1 1 . . . . Scrap Searched . | . . . . . . Spaces Dug . | . . . . . . Terrain Destroyed 91 | . 3 2 21 61 4 Melee . | . . . . . . Projectile 24 | . 3 2 6 9 4 AOE 67 | . . . 15 52 . Terrain Rammed . | . . . . . . Walls Destroyed . | . . . . . . Machines Disabled . | . . . . . . Actions | -11 -10 -9 -8 -7 -6 --------- Run | Jun Mat Mat Mat Fac Fac Total 5335 | 125 481 512 1313 2810 94 Wait 211 | . 16 33 42 120 . Move 4296 | 103 392 396 1041 2300 64 Hop . | . . . . . . Pick Up 150 | 9 19 12 49 60 1 Fast Attach 9 | 4 . . 4 1 . Attach 109 | 3 6 10 27 60 3 Detach 16 | . 3 1 2 10 . Swap 37 | 2 3 3 10 17 2 Drop 56 | . 7 8 27 14 . Fire 439 | 4 34 48 110 219 24 Melee . | . . . . . . Ram 3 | . . . . 3 . Kick . | . . . . . . Crush 3 | . 1 1 1 . . Escape Stasis 6 | . . . . 6 . Rewire . | . . . . . . Trap . | . . . . . . Miscellaneous . | . . . . . . Route ------- -11/Junkyard -10/Materials (discovered 2 exits: *Mat / [*Min]) -9/Materials (discovered 4 exits: *Mat / *Min x2 / [*Sto]) -8/Materials (discovered 3 exits: *Fac x3) -7/Factory (discovered 5 exits: *Fac x4 / *Low) -6/Factory History --------- Turn | Location | Event 10 | -11/Junkyard | Discovered new exit (range 16) 129 | -11/Junkyard | Entered Materials 261 | -10/Materials | Discovered new exit (range 7) 303 | -10/Materials | Build established: Mutant 1064 | -10/Materials | Discovered new exit (range 11) 1131 | -10/Materials | Entered another Materials area 1131 | -9/Materials | Evolved 2 slots: Utility x2 1380 | -9/Materials | Discovered new exit (range 15) 1565 | -9/Materials | Discovered new exit (range 12) 1640 | -9/Materials | Identified exit to Mines 1645 | -9/Materials | Discovered exit to Mines (range 16) 2220 | -9/Materials | Lost 3 parts (1n1u1w) 2250 | -9/Materials | Discovered new exit (range 5) 2272 | -9/Materials | Identified exit to Materials 2291 | -9/Materials | Entered another Materials area 2291 | -8/Materials | Evolved 2 slots: Propulsion x2 2410 | -8/Materials | Lost 4 parts (1p1n1u1w) 2901 | -8/Materials | Discovered new exit (range 4) 2975 | -8/Materials | Identified exit to Factory 3647 | -8/Materials | Discovered exit to Factory (range 10) 3872 | -8/Materials | Garrison activated, responded to threat 4112 | -8/Materials | Build established: Scavenger-Mutant 4428 | -8/Materials | Discovered exit to Factory (range 10) 4430 | -8/Materials | Core integrity fell below 50% 4486 | -8/Materials | Core integrity fell below 20% 4559 | -8/Materials | Lost 15 parts (3p4n4u4w) 4660 | -8/Materials | Entered Factory 4660 | -7/Factory | Evolved 2 slots: Power x1, Utility x1 6258 | -7/Factory | Discovered new exit (range 11) 6308 | -7/Factory | Identified exit to Lower Caves 6348 | -7/Factory | Lost 4 parts (1p1u2w) 6603 | -7/Factory | Build established: Mutant 6909 | -7/Factory | Discovered new exit (range 6) 6916 | -7/Factory | Identified exit to Factory 7060 | -7/Factory | First assault squad dispatched 7227 | -7/Factory | System corruption reached 10% 7292 | -7/Factory | Lost 10 parts (2p3n4u1w) 7324 | -7/Factory | Core integrity fell below 50% 7714 | -7/Factory | Lost 3 parts (2n1u) 7816 | -7/Factory | Discovered exit to Factory (range 4) 7964 | -7/Factory | Lost 3 parts (2u1w) 8049 | -7/Factory | Build established: Scavenger-Mutant 8544 | -7/Factory | Discovered exit to Factory (range 8) 8608 | -7/Factory | Build established: Mutant 8638 | -7/Factory | Core integrity fell below 20% 8703 | -7/Factory | Lost 4 parts (2p1n1w) 8898 | -7/Factory | Found Powered Armor 8939 | -7/Factory | Build established: Scavenger-Mutant 9048 | -7/Factory | Discovered exit to Factory (range 6) 9087 | -7/Factory | Entered another Factory area 9087 | -6/Factory | Evolved 2 slots: Utility x2 9216 | -6/Factory | Spotted B-75 Beast 9247 | -6/Factory | Self-destructed Last Messages --------------- 09229_ K-01 Serf collects debris. 09232_ Slug penetrates B-75 Beast. 09232_ B-75 Beast Coolant Injector blasted off. 09232_ K-01 Serf collects debris. 09233_ K-01 Serf latches onto Y-54 Guardian. 09233_ K-01 Serf pushes Y-54 Guardian. 09233_ U-05 Engineer builds a Wall. 09233_ K-01 Serf pushes Y-54 Guardian. 09237_ Slug penetrates R-10 Processor. 09237_ R-10 Processor destroyed. 09237_ K-01 Serf pushes Y-54 Guardian. 09238_ R-10 Processor collects Coolant Injector. 09239_ Matter Pump disabled. 09240_ K-01 Serf cleans the Matter Pump. 09240_ U-05 Engineer destroyed. 09242_ R-10 Processor destroyed. 09243_ K-01 Serf collects debris. 09244_ K-01 Serf cleans the Matter Pump. 09246_ U-05 Engineer builds a Wall. 09246_ R-10 Processor collects Unknown Wheel. Map ----- +----------------------------------------------------+ | ?????????????????????????????????????????????????? | | ?????????????????????????????????????????????????? | | ?????????????????????????????????????????????????? | | ?????????????????????????????????????????????????? | | ?????????????????????????????????????????????????? | | ?????????????????????????????????????????????????? | | ?????????????????????????????????????????????????? | | ??????????????????? ?????????????????????????????? | | ????????????? ????? ?????????????????????????????? | | ????????????# ??? ????????????????????????????? | | ????????????# ??? "????????????????????????????? | | ###?????????# ??" ""???????????????????????????? | | #?????????# ??" ""???????????????????????????? | | #?? ??????# ??????????????????????????? | | # " " ????# """ """ ????????????????????????? | | + ??????# """ """ ?????????????????????????? | | #?????????# """ """??????????????????????????? | | #??????????? ???????????????????????????? | | ##############;#;+##############+###???????????? | | % ^ ^ % ???????????? | | %% ??????????? | | % % ??????????????? | | % """k""????????????????? | | g """k"""???????????????? | | ############+###########; "%" """ ""????????????? | | ???????????????????????#@R % = ????????? | | ?????????????????????%#u ![!!^ o"""???????????? | | ???????????????????### %=%%%BB """???????????? | | """???????????????????? =!]RBB ""????????????? | | ""?????????????????????# % ]!! ???????????? | | "??????????????????????# /! ??????????? | | ? ??????????????????????###+####### %##??????????? | | ??????????????????????????? ???] ?% #???????????? | | ??????????????????????????? ???? #??#???????????? | | ??????????????????????????? ????#??????????????? | | ???????????????????????????? "???????????????????? | | ???????????????????????????? "???????????????????? | | ???????????????????????????? "???????????????????? | | ???????????????????????????? ???????????????????? | | ?????????????????????????????"???????????????????? | | ?????????????????????????????????????????????????? | | ?????????????????????????????????????????????????? | | ?????????????????????????????????????????????????? | | ?????????????????????????????????????????????????? | | ?????????????????????????????????????????????????? | | ?????????????????????????????????????????????????? | | ?????????????????????????????????????????????????? | | ?????????????????????????????????????????????????? | | ?????????????????????????????????????????????????? | | ?????????????????????????????????????????????????? | +----------------------------------------------------+ Best States ------------- Heat Dissipation 65 Energy Generation 28 Energy Capacity 465 Matter Stores 300 Matter Capacity 300 Sight Range 16 Robot Scan Range 14 Terrain Scan Range 16 Terrain Scan Density 85 Jamming Range 14 EM Shielding 2 Armor Coverage 850 Resistance: KI 30 Resistance: TH 10 Evasion (%) 55 Recoil Reduction 4 Item Schematics ----------------- None Robot Schematics ------------------ None Fabricated ------------ Nothing Alien Tech Used ----------------- None Achievements -------------- None Challenges ------------ None Game ------ Seed SapperShieldFlail Manual? 0 Play Time 01:05:09 Cumulative 69.6 hours Start 2023.04.06 @ 19:01:42 End 2023.04.06 @ 20:05:34 Sessions 1 Manual Loads 0 Difficulty Rogue Special Mode None Game No. 79 Rogue 79 Adventurer 0 Explorer 0 Win Type - Total 0 Types 0/0/0/0/0/0/0/0/0 Lore% 38 Gallery% 49 Achievement% 42 Wizard Run 0 Options --------- ASCII 0 Keyboard 0 Movement Arrows Keybinds 0 Fullscreen 2 Font 18/SmallcapsGlow Map View 76x50 Tactical HUD 1 Map Filters NONE Filters NONE Steam 1 RUN: 5f8f2937-63b9-44b9-9555-2f2370dfd917